bitfinex/quotes_ETHUSD_20260111
["timestamp","ask_amount","ask_price","bid_price","bid_amount"]
[1768165436546,0.94508321,3111.9,3111.8,0.002]
[1768165436856,0.94508321,3111.8,3111.5,0.002]
[1768165437266,0.94508321,3111.7,3111.5,0.002]
[1768165437472,0.98525417,3111.7,3111.5,0.002]
[1768165437761,0.98525417,3111.7,3111.2,0.002]
[1768165437961,0.98525417,3111.7,3110.7,0.002]
[1768165438126,0.94508321,3111.5,3110.7,0.9204846]
[1768165438472,0.94508321,3111.5,3110.7,0.002]
[1768165438618,0.94508321,3111.5,3110.7,0.9204846]
[1768165439312,4.15907048,3111.4,3110.7,0.002]
[1768165439516,0.41590705,3111.3,3110.7,0.002]
[1768165441398,0.94508321,3111.2,3110.7,0.002]
[1768165441681,0.94508321,3110.9,3110.5,0.002]
[1768165441861,0.94508321,3110.7,3110.3,0.002]
[1768165442167,0.94588625,3110.6,3110.0,0.002]
[1768165443565,4.16078102,3110.6,3110.0,0.002]
[1768165443878,0.4160781,3110.5,3110.0,0.002]
[1768165444588,0.94588625,3110.6,3110.0,0.002]
[1768165445382,4.16074634,3110.6,3110.0,0.002]
[1768165445576,0.94588625,3110.6,3110.0,0.002]
[1768165445773,0.90166116,3110.5,3110.0,0.002]
[1768165448074,0.90166116,3110.5,3110.3,0.002]
[1768165448450,0.90166116,3110.5,3110.0,0.002]
[1768165450247,4.15424027,3110.6,3110.0,0.002]
[1768165450467,4.71831889,3110.6,3110.0,0.002]
[1768165451658,1.50342046,3110.6,3110.0,0.002]
[1768165451977,4.7182681,3110.6,3110.0,0.002]
[1768165452480,1.50342046,3110.6,3110.0,0.002]
[1768165453059,4.71829859,3110.6,3110.0,0.002]
[1768165453649,1.50342046,3110.6,3110.0,0.002]
[1768165453848,4.7182585,3110.6,3110.0,0.002]
[1768165455775,1.50342046,3110.6,3110.0,0.002]
[1768165455979,4.71823917,3110.6,3110.0,0.002]
[1768165456486,0.9385388,3110.5,3110.0,0.002]
[1768165457203,0.9385388,3110.4,3110.0,0.002]
[1768165457364,0.97872655,3110.4,3110.0,0.002]
[1768165457981,4.19376301,3110.4,3110.0,0.002]
[1768165458183,4.15357526,3110.4,3110.0,0.002]
[1768165459471,0.9385388,3110.3,3110.0,0.002]
[1768165459671,1.72257314,3110.3,3110.0,0.002]
[1768165460095,0.001,3110.2,3110.0,0.002]
[1768165460604,0.9395388,3110.2,3110.0,0.002]
[1768165460900,0.97873043,3110.1,3110.0,0.002]
[1768165461101,0.9385388,3110.1,3110.0,0.002]
[1768165461317,0.9385388,3110.0,3109.6,0.002]
[1768165461612,0.9385388,3109.6,3109.2,0.00080376]
[1768165461904,0.9385388,3109.6,3108.7,0.002]
[1768165462103,0.9385388,3109.4,3108.7,0.002]
[1768165462270,0.9385388,3109.2,3108.7,0.002]
[1768165464002,0.9385388,3109.0,3108.7,0.002]
[1768165464217,1.35402917,3108.9,3108.3,0.0008048]
[1768165464409,0.9385388,3108.8,3108.3,0.0008048]
[1768165464572,0.9385388,3108.7,3108.3,0.0008048]
[1768165465009,0.9385388,3109.4,3108.6,0.9302786]
[1768165465182,0.9385388,3109.3,3108.4,0.9302786]
[1768165465529,0.94821216,3108.9,3108.3,0.0008048]
[1768165465805,0.00967336,3108.7,3108.3,0.0008048]
[1768165466023,0.00967336,3108.5,3107.8,0.9302786]
[1768165466225,0.00967336,3108.3,3107.8,0.9302786]
[1768165466587,0.00967336,3108.3,3107.8,4.14797979]
[1768165467225,0.00967336,3108.3,3107.8,4.88464894]
[1768165467528,0.00967336,3108.3,3107.8,1.66694775]
[1768165467820,0.00967336,3108.2,3107.8,0.9302786]
[1768165468035,0.00967336,3108.2,3107.8,4.14797108]
[1768165468210,0.00967336,3108.2,3107.8,0.9302786]
[1768165468590,0.00967336,3108.5,3107.8,0.9302786]
[1768165469320,0.00967336,3108.5,3107.8,1.34516368]
[1768165469525,3.22666133,3108.5,3107.8,1.34516368]
[1768165469829,3.22666133,3108.5,3107.8,0.9302786]
[1768165470004,4.16520013,3108.5,3107.8,0.9302786]
[1768165470592,0.94821216,3108.3,3107.7,0.00080368]
[1768165471291,0.00967336,3108.3,3107.7,0.93108228]
[1768165471634,0.00967336,3108.3,3108.1,0.002]
[1768165472523,0.94821216,3108.5,3108.1,0.002]
[1768165473330,1.39107011,3108.5,3108.1,0.002]
[1768165477925,0.45253131,3108.5,3108.1,0.002]
[1768165478092,0.00967336,3108.5,3108.1,0.002]
[1768165479623,0.92549212,3108.5,3108.1,0.002]
[1768165482241,0.00967336,3108.5,3108.1,0.002]
[1768165484124,3.22666388,3108.5,3108.1,0.002]
[1768165484305,0.00967336,3108.3,3108.1,0.002]
[1768165486729,0.0008048,3108.7,3108.1,0.99207005]
[1768165491019,0.0008048,3108.7,3108.2,0.99007005]
[1768165492160,0.0008048,3108.7,3108.3,0.99007005]
[1768165493018,0.0008048,3108.7,3108.4,0.99007005]
[1768165495121,0.0008048,3108.7,3108.4,4.20712013]
[1768165495446,0.0008048,3108.7,3108.4,0.99007005]
[1768165498338,0.0008048,3108.7,3108.5,0.99007005]
[1768165499453,0.0008048,3108.7,3108.5,1.43608506]
[1768165501051,0.00967336,3108.6,3108.1,0.002]
[1768165501240,0.91581876,3108.5,3108.1,0.002]
[1768165501445,0.92549212,3108.4,3108.1,0.002]
[1768165501633,0.92549212,3108.4,3107.8,0.002]
[1768165501837,1.65177856,3108.3,3107.8,0.002]
[1768165502153,0.92549212,3108.0,3107.2,1.24307005]
[1768165502345,0.92549212,3108.0,3107.3,0.99007005]
[1768165502651,0.00967336,3108.0,3107.3,0.99007005]
[1768165503642,3.22718216,3108.0,3107.3,0.99007005]
[1768165503969,3.64252996,3108.0,3107.3,0.99007005]
[1768165505061,0.42502116,3108.0,3107.3,0.99007005]
[1768165505605,0.42502116,3108.0,3107.1,0.25380328]
[1768165505606,0.99428575,3107.5,3107.1,0.00080328]
[1768165505880,0.98541567,3107.5,3106.5,0.0028238]
[1768165506249,0.98541567,3107.5,3106.5,0.96930387]
[1768165506454,0.98541567,3107.5,3106.6,0.96648007]
[1768165506677,0.98541567,3107.5,3107.0,3.21853813]
[1768165506842,0.00080328,3107.5,3107.1,0.96648007]
[1768165507043,0.00080328,3107.5,3106.9,3.21859487]
[1768165507376,0.00080328,3107.5,3107.3,0.002]
[1768165507377,0.98461239,3107.4,3107.3,0.002]
[1768165507580,0.98461239,3107.4,3106.9,3.86233646]
[1768165507581,0.98541567,3107.5,3106.5,3.22183333]
[1768165507765,0.98541567,3107.5,3106.6,0.96648007]
[1768165508280,0.98461239,3107.4,3106.5,3.22183333]
[1768165508502,0.98461239,3107.4,3106.5,6.44089014]
[1768165508658,0.98461239,3107.4,3106.6,0.66938901]
[1768165509045,0.98461239,3107.4,3106.6,1.64232943]
[1768165509392,0.98461239,3107.4,3106.7,0.97294042]
[1768165509569,0.98461239,3107.4,3106.7,4.19170677]
[1768165510087,0.98461239,3107.4,3106.7,0.97294042]
[1768165510243,0.98461239,3107.4,3106.6,3.88829177]
[1768165510748,0.98461239,3107.4,3106.7,0.97294042]
[1768165511481,0.98461239,3107.4,3106.7,4.19176235]
[1768165511655,0.98461239,3107.4,3106.7,5.00006249]
[1768165511842,0.00080328,3107.5,3106.7,5.00006249]
[1768165512043,0.00080328,3107.5,3106.8,0.97294042]
[1768165512938,0.9654844,3108.0,3107.1,0.97374378]
[1768165513143,0.00080368,3108.1,3107.1,0.97374378]
[1768165513475,0.32181113,3108.0,3107.1,0.97374378]
[1768165513774,3.21823237,3108.1,3107.3,0.97294042]
[1768165513954,0.00080368,3108.1,3107.3,0.97294042]
[1768165514145,0.96628808,3108.1,3107.1,4.19213351]
[1768165514346,0.96628808,3108.1,3107.2,0.97294042]
[1768165514967,0.00080368,3108.1,3107.2,0.97294042]
[1768165515169,0.00080368,3108.1,3107.3,0.97294042]
[1768165515746,0.00080368,3108.1,3107.4,0.97294042]
[1768165516779,0.96628808,3108.1,3107.4,0.97294042]
[1768165516967,0.00080368,3108.1,3107.4,0.97294042]
[1768165517579,0.00080368,3108.1,3107.5,0.97294042]
[1768165518654,0.00080368,3108.1,3107.6,0.97294042]
[1768165518856,0.001,3107.8,3107.6,0.97294042]
[1768165519077,0.00080368,3108.1,3107.7,0.97294042]
[1768165520049,0.00080368,3108.1,3107.5,0.97294042]
[1768165520787,0.96628808,3108.1,3107.4,3.47104386]
[1768165523282,0.00080368,3108.1,3107.5,0.97294042]
[1768165524172,0.001,3108.4,3107.7,0.97294042]
[1768165524388,0.001,3108.4,3107.9,0.97294042]
[1768165524695,0.0008048,3108.7,3108.1,0.97294042]
[1768165526581,0.0008048,3108.7,3108.3,0.97294042]
[1768165530485,0.001,3108.4,3108.3,0.97294042]
[1768165531106,0.001,3108.4,3108.1,4.1902865]
[1768165531255,0.001,3108.4,3108.1,4.95637404]
[1768165533504,0.001,3108.4,3108.1,1.73902796]
[1768165534212,0.001,3108.4,3108.1,4.95641181]
[1768165534776,0.001,3108.4,3108.0,3.47045194]
[1768165536903,0.001,3108.4,3108.0,4.43183073]
[1768165537878,0.001,3108.4,3108.0,0.253]
[1768165538283,0.93112859,3108.4,3107.7,0.00280376]
[1768165539018,0.93012859,3108.2,3107.7,0.00280376]
[1768165539178,0.93012859,3108.0,3107.7,0.00280376]
[1768165539376,0.93012859,3108.0,3107.4,0.002]
[1768165541624,0.41553589,3108.1,3107.4,0.96337879]
[1768165541805,0.00080376,3108.1,3107.4,0.96337879]
[1768165542382,0.00080376,3108.1,3107.7,0.002]
[1768165547924,0.00080376,3108.1,3107.7,0.96337879]
[1768165548129,0.00080376,3108.1,3107.7,0.002]
[1768165552461,0.00080376,3108.1,3107.7,0.96337879]
[1768165552622,0.001,3108.4,3107.9,0.96137879]
[1768165554104,0.001,3108.4,3108.2,0.002]
[1768165555202,0.93112859,3108.4,3108.2,0.002]
[1768165555402,0.93112859,3108.4,3107.9,0.002]
[1768165556342,0.93012859,3108.3,3107.9,0.002]
[1768165559736,4.14732734,3108.3,3107.9,0.002]
[1768165559970,4.88385953,3108.3,3107.9,0.002]
[1768165561341,0.97034479,3108.2,3107.9,0.002]
[1768165562305,0.97034479,3108.2,3107.7,0.00280384]
[1768165562623,0.93012859,3108.2,3107.7,0.00280384]
[1768165563006,4.14742484,3108.2,3107.7,0.00280384]
[1768165563304,4.95763068,3108.2,3107.7,0.00280384]
[1768165564845,1.74033443,3108.2,3107.7,0.00280384]
[1768165566119,1.74033443,3108.2,3108.0,0.002]
[1768165566324,0.98679268,3108.1,3107.7,0.00280384]
[1768165566645,0.98779268,3108.1,3107.7,0.00280384]
[1768165567347,0.001,3108.1,3107.7,0.00280384]
[1768165571280,0.00180384,3108.1,3107.6,0.002]
[1768165574465,0.001,3108.4,3107.9,0.96678244]
[1768165576007,0.001,3108.4,3108.0,0.96678244]
[1768165577785,0.001,3108.4,3108.0,4.18418318]
[1768165578720,0.001,3108.4,3108.0,4.18618318]
[1768165578902,0.001,3108.4,3108.1,0.44391832]
[1768165579616,0.001,3108.4,3108.2,0.96678244]
[1768165579827,0.001,3108.4,3108.3,0.96678244]
[1768165582644,0.001,3108.4,3108.1,4.62805166]
[1768165583922,0.001,3108.4,3108.2,0.96678244]
[1768165584424,0.001,3108.4,3108.2,1.42978761]
[1768165585125,0.001,3108.4,3108.2,4.64707673]
[1768165585609,0.001,3108.4,3108.2,1.42978761]
[1768165588350,0.001,3108.4,3108.2,4.64707481]
[1768165591453,0.0008048,3108.7,3108.2,4.64707481]
[1768165592340,0.0008048,3108.7,3108.3,0.83083757]
[1768165593254,0.0008048,3108.7,3108.4,0.96678244]
[1768165594246,4.19378995,3109.3,3108.4,0.96678244]
[1768165594650,0.97760372,3109.2,3108.4,0.96678244]
[1768165595339,0.97760372,3109.2,3108.5,3.21698568]
[1768165595542,0.97760372,3109.2,3108.4,4.18382272]
[1768165597227,0.97760372,3109.2,3108.4,5.0070951]
[1768165598547,4.19386574,3109.2,3108.4,1.79005482]
[1768165598761,0.97760372,3109.1,3108.4,1.79005482]
[1768165599077,0.97760372,3109.1,3108.4,5.00709832]
[1768165600281,0.97760372,3109.1,3108.4,1.79005482]
[1768165600888,0.97760372,3109.1,3108.4,5.00709821]
[1768165601887,0.97760372,3109.1,3108.7,0.002]
[1768165602256,0.001,3108.9,3108.7,0.002]
[1768165603786,0.97760372,3109.3,3108.7,0.002]
[1768165608103,0.00080376,3109.6,3108.7,0.93896986]
[1768165610399,0.00080376,3109.6,3108.9,0.93696986]
[1768165610604,0.00080376,3109.6,3108.8,3.21667524]
[1768165610605,0.00080376,3109.6,3109.0,1.60533437]
[1768165611316,0.97840748,3109.6,3109.0,0.41536451]
[1768165611610,0.97840748,3109.6,3108.7,1.19196986]
[1768165612702,0.97840748,3109.6,3108.7,4.40869701]
[1768165612703,0.97760372,3109.5,3108.7,4.40869701]
[1768165613416,1.0178031,3109.5,3108.7,0.002]
[1768165613576,0.97760372,3109.5,3108.7,0.002]
[1768165614777,0.97860372,3109.2,3108.7,0.002]
[1768165617685,0.001,3109.2,3108.7,0.002]
[1768165621232,0.97860372,3109.2,3108.7,0.002]
[1768165621624,0.001,3109.2,3108.7,0.002]
[1768165622218,0.001,3109.2,3108.7,0.93896986]
[1768165622419,0.001,3109.2,3108.8,0.41558407]
[1768165623653,0.001,3109.2,3108.8,1.35255393]
[1768165623820,0.001,3109.2,3108.9,0.93696986]
[1768165624017,0.001,3109.2,3108.8,0.41558407]
[1768165624223,0.001,3109.2,3108.7,0.98778408]
[1768165633263,0.001,3109.2,3108.7,4.20456269]
[1768165633466,0.94851503,3109.6,3108.8,0.99374406]
[1768165634771,4.16437682,3109.6,3108.8,0.99374406]
[1768165635309,0.94771127,3109.5,3108.7,0.002]
[1768165635521,0.94771127,3109.5,3108.7,0.89610287]
[1768165635883,0.94651127,3109.5,3108.7,0.89610287]
[1768165636422,0.94651127,3109.5,3108.7,1.88984693]
[1768165636595,0.94651127,3109.5,3108.8,0.253]
[1768165637122,0.94771127,3109.4,3108.8,0.253]
[1768165637684,0.001,3109.2,3108.8,0.253]
[1768165638216,0.001,3109.2,3108.7,0.255]
[1768165642235,0.94871127,3109.2,3108.7,0.002]
[1768165642433,0.98891453,3109.2,3108.7,0.002]
[1768165642638,0.94871127,3109.2,3108.7,0.002]
[1768165642954,0.94771127,3109.1,3108.7,0.002]
[1768165643106,0.94771127,3109.1,3108.4,0.002]
[1768165643107,0.98791583,3109.1,3108.4,0.002]
[1768165643443,0.94771127,3108.9,3108.4,0.002]
[1768165646254,0.94771127,3108.8,3108.4,0.002]
[1768165648316,4.16445509,3108.8,3108.4,0.002]
[1768165648550,4.90256803,3108.8,3108.4,0.002]
[1768165649557,4.90256803,3108.8,3108.7,0.002]
[1768165649716,0.94771127,3108.7,3108.4,0.002]
[1768165650366,4.16451618,3108.7,3108.4,0.002]
[1768165650650,0.94771127,3108.6,3108.3,0.00080488]
[1768165650857,0.94771127,3108.5,3108.0,0.002]
[1768165661629,0.00080488,3108.7,3108.3,0.002]
[1768165663834,0.00080488,3108.7,3108.3,0.94507707]
[1768165665286,0.254,3108.9,3108.5,0.94307707]
[1768165665287,0.001,3108.9,3108.5,0.94307707]
[1768165665468,0.001,3108.9,3108.6,0.54198815]
[1768165666731,0.001,3108.9,3108.5,0.94307707]
[1768165666928,0.001,3108.9,3108.3,0.94588203]
[1768165667348,0.001,3108.9,3108.3,4.16305982]
[1768165667544,0.001,3108.9,3108.3,0.94588203]
[1768165668471,0.001,3108.9,3108.3,4.16305847]
[1768165668636,0.001,3108.9,3108.4,0.41630585]
[1768165670870,0.001,3108.9,3108.5,0.94307707]
[1768165671641,0.001,3109.2,3108.7,0.94307707]
[1768165672870,0.001,3109.2,3108.8,0.94307707]
[1768165678280,0.001,3109.2,3108.6,1.19607707]
[1768165678479,0.001,3109.2,3108.7,0.44130092]
[1768165681652,0.99502846,3109.2,3108.6,0.253]
[1768165682292,0.001,3109.2,3108.6,4.41290529]
[1768165682990,0.001,3109.2,3108.6,1.19607707]
[1768165683289,0.001,3109.2,3108.6,4.4129396]
[1768165683486,0.001,3109.2,3108.6,3.46986253]
[1768165683686,0.001,3109.2,3108.8,0.94307707]
[1768165684279,0.00082994,3109.7,3109.2,5.4206817]
[1768165684477,4.17206132,3110.1,3109.2,5.4206817]
[1768165684478,4.17206132,3110.1,3109.3,0.9447073]
[1768165684897,0.95669692,3110.0,3109.3,0.00083002]
[1768165685208,0.95669692,3109.9,3109.3,0.00083002]
[1768165689176,0.96252246,3109.8,3109.3,0.00083002]
[1768165692321,0.89552246,3109.8,3109.3,0.00083002]
[1768165695223,4.17797811,3110.0,3109.3,0.00083002]
[1768165695429,4.177892,3110.1,3109.3,0.00083002]
[1768165695643,4.94261256,3110.1,3109.3,0.00083002]
[1768165695794,0.96252246,3110.0,3109.3,0.00083002]
[1768165697428,0.96252246,3110.0,3109.6,0.002]
[1768165697649,0.001,3109.8,3109.6,0.002]
[1768165706646,0.001,3109.8,3109.6,0.97589558]
[1768165707131,0.001,3110.2,3109.7,4.18957885]
[1768165707338,0.001,3110.2,3109.8,1.39305347]
[1768165709514,0.001,3110.2,3109.8,4.60867929]
[1768165709934,0.00080304,3110.6,3109.9,0.97389558]
[1768165711150,4.17671634,3111.2,3110.2,0.9746987]
[1768165711354,3.63198643,3111.1,3110.2,4.18991022]
[1768165711514,4.59450889,3111.1,3110.3,0.97389558]
[1768165711859,1.38019409,3111.1,3110.3,0.97389558]
[1768165712014,0.96252246,3111.1,3110.3,0.97389558]
[1768165713445,0.96252246,3111.0,3110.3,0.97389558]
[1768165713961,0.96252246,3111.0,3110.2,0.00080312]
[1768165714126,0.99328483,3110.8,3110.2,0.00080312]
[1768165714537,0.99328483,3110.6,3110.2,0.00080312]
[1768165714732,1.03347129,3110.5,3110.2,0.00080312]
[1768165714929,0.99328483,3110.5,3110.2,0.00080312]
[1768165715544,0.99328483,3110.8,3110.2,0.00080312]
[1768165715854,0.99328483,3110.7,3110.2,0.00080312]
[1768165718048,3.95689622,3110.8,3110.2,0.00080312]
[1768165718755,0.99328483,3110.7,3110.2,0.00080312]
[1768165719554,3.95689622,3110.8,3110.2,0.00080312]
[1768165720352,4.95018105,3110.8,3110.2,0.00080312]
[1768165720657,0.81646866,3110.7,3110.5,0.002]
[1768165720852,0.81646866,3110.7,3110.2,0.00080312]
[1768165722458,0.81646866,3110.7,3110.2,0.96013054]
[1768165722644,3.21455106,3110.9,3110.2,0.96013054]
[1768165727368,3.21442331,3111.0,3110.2,0.96013054]
[1768165727566,3.46742331,3111.0,3110.2,0.96013054]
[1768165729245,6.68184662,3111.0,3110.2,0.96013054]
[1768165729445,0.66818466,3110.9,3110.2,0.96013054]
[1768165730259,0.99328483,3110.8,3110.2,0.00080312]
[1768165730462,0.99328483,3110.6,3110.2,0.00080312]
[1768165730651,0.99328483,3110.4,3109.6,0.002]
[1768165730853,0.99328483,3110.2,3109.6,0.002]
[1768165731053,1.73563453,3110.2,3109.6,0.002]
[1768165731471,0.99328483,3110.1,3109.6,0.002]
[1768165732482,0.99328483,3110.1,3109.3,0.00283002]
[1768165732687,0.99328483,3109.9,3109.3,0.00283002]
[1768165732849,0.99328483,3109.7,3109.3,0.00283002]
[1768165733053,0.99328483,3109.5,3109.2,0.00080384]
[1768165733298,0.99328483,3109.5,3108.9,0.002]
[1768165733954,0.7432605,3109.6,3108.9,0.96132742]
[1768165735184,0.00080384,3109.6,3108.9,0.96132742]
[1768165735352,0.00080384,3109.6,3109.0,0.95932742]
[1768165736786,0.00083002,3109.7,3109.5,0.95932742]
[1768165736992,3.21538663,3110.1,3109.6,0.95932742]
[1768165737985,3.21527388,3110.2,3109.6,0.95932742]
[1768165738189,0.6430415,3110.1,3109.6,0.95932742]
[1768165739153,3.85839448,3110.1,3109.6,0.95932742]
[1768165740429,0.6430415,3110.1,3109.6,0.95932742]
[1768165742106,3.85838385,3110.1,3109.6,0.95932742]
[1768165742272,4.85166868,3110.1,3109.3,0.96015752]
[1768165743296,3.85838385,3110.1,3109.3,0.96015752]
[1768165744498,7.0737262,3110.1,3109.3,0.96015752]
[1768165744695,0.8067011,3110.0,3109.3,0.96015752]
[1768165745005,3.21534235,3110.1,3109.3,0.96015752]
[1768165745507,0.001,3109.8,3109.6,0.002]
[1768165750210,0.96949137,3109.8,3109.6,0.0001229]
[1768165753512,0.001,3109.8,3109.6,0.0001229]
[1768165753712,0.001,3109.8,3109.6,0.94409223]
[1768165758033,0.001,3109.8,3109.6,0.0001229]
[1768165771181,4.18366871,3110.3,3109.6,0.94409223]
[1768165771455,0.4436638,3110.2,3109.6,0.94409223]
[1768165773254,3.6589822,3110.2,3109.6,0.94409223]
[1768165774251,3.2153184,3110.2,3109.6,0.94409223]
[1768165779560,0.001,3109.9,3109.6,0.94409223]
[1768165788582,0.001,3109.9,3109.6,0.0001229]
[1768165829140,4.41116275,3110.4,3109.6,0.0001229]
[1768165830641,3.46805687,3110.4,3109.8,0.99328297]
[1768165831310,3.46805687,3110.4,3109.7,4.47167995]
[1768165831544,4.41116275,3110.4,3109.7,4.47167995]
[1768165831714,1.19610588,3110.4,3109.7,5.33977417]
[1768165831906,1.19610588,3110.4,3109.7,6.33305714]
[1768165832847,1.19610588,3110.4,3109.7,9.54876451]
[1768165833640,0.94310588,3110.4,3109.7,9.54876451]
[1768165834639,0.94310588,3110.4,3109.7,8.55548154]
[1768165834866,0.94310588,3110.4,3109.8,0.88086044]
[1768165835619,0.94310588,3110.4,3109.7,4.08383608]
[1768165836448,0.94310588,3110.4,3109.7,5.01882495]
[1768165837851,0.001,3110.1,3109.7,5.01882495]
[1768165838756,4.1469601,3110.6,3109.8,0.93498887]
[1768165839523,0.93128932,3110.5,3109.8,0.93498887]
[1768165839723,0.93128932,3110.5,3109.8,1.78376756]
[1768165840829,0.93128932,3110.5,3109.8,1.78376756]
[1768165841566,4.14620775,3110.5,3109.8,1.78376756]
[1768165841852,0.93128932,3110.5,3109.8,1.78376756]
[1768165842155,3.21566268,3110.6,3109.8,1.78376756]
[1768165842156,0.00080312,3110.6,3109.9,0.93498887]
[1768165842960,0.00080312,3110.6,3109.9,4.15052339]
[1768165843126,0.00080312,3110.6,3110.0,0.49993021]
[1768165844528,0.00080312,3110.6,3109.9,0.93498887]
[1768165844529,0.93209244,3110.6,3109.9,0.93498887]
[1768165845047,0.93128932,3110.5,3109.8,0.84877869]
[1768165846729,3.21569695,3110.6,3109.9,0.93498887]
[1768165849965,0.001,3110.2,3109.9,0.93498887]
[1768165856166,0.001,3110.2,3110.0,0.93498887]
[1768165856462,0.001,3110.2,3110.1,0.41505153]
[1768165856668,0.001,3110.2,3110.0,0.93498887]
[1768165861683,0.001,3110.2,3109.8,2.03676756]
[1768165863077,0.001,3110.2,3109.8,1.78376756]
[1768165863241,0.001,3110.2,3109.8,1.18798887]
[1768165868383,0.001,3110.2,3109.8,0.253]
[1768165868685,0.90233659,3110.1,3109.8,0.253]
[1768165871086,0.001,3110.2,3109.8,0.253]
[1768165871489,0.001,3110.2,3109.8,1.20879846]
[1768165871692,0.001,3110.2,3109.8,1.65127483]
[1768165872293,0.001,3110.2,3109.8,0.69547637]
[1768165872454,0.001,3110.2,3109.8,0.253]
[1768165873188,0.001,3110.2,3110.1,0.002]
[1768165873378,1.0289041,3110.2,3110.1,2.5e-07]
[1768165874096,0.98871376,3110.2,3110.1,2.5e-07]
[1768165874462,4.20394107,3110.2,3110.1,2.5e-07]
[1768165875566,4.94594038,3110.2,3110.1,2.5e-07]
[1768165879297,1.73071307,3110.2,3110.1,2.5e-07]
[1768165880100,4.94594038,3110.2,3110.1,2.5e-07]
[1768165880897,3.95822662,3110.2,3110.1,2.5e-07]
[1768165886096,4.94594038,3110.2,3110.1,2.5e-07]
[1768165886776,3.95822662,3110.2,3110.1,2.5e-07]
[1768165888203,0.74299931,3110.2,3110.1,2.5e-07]
[1768165890421,0.00080312,3110.6,3110.2,0.95579846]
[1768165890569,0.00080312,3110.6,3110.2,0.86609879]
[1768165899114,0.001,3110.3,3110.2,0.86609879]
[1768165899328,0.00080312,3110.6,3110.3,0.99560758]
[1768165920027,0.00080312,3110.6,3110.1,0.99560783]
[1768165920231,0.00080312,3110.6,3110.1,1.88900806]
[1768165920805,0.00080312,3110.6,3110.1,0.99560783]
[1768165921133,0.00080312,3110.6,3110.1,2.5e-07]
[1768165922400,0.001,3110.3,3110.1,2.5e-07]
[1768165933740,0.04118904,3110.3,3110.1,2.5e-07]
[1768165938346,3.25632284,3110.3,3110.1,2.5e-07]
[1768165939451,4.25518539,3110.3,3110.1,2.5e-07]
[1768165939659,0.99886255,3110.2,3110.1,2.5e-07]
[1768165940149,4.21408986,3110.2,3110.1,2.5e-07]
[1768165940525,3.21522731,3110.2,3110.1,2.5e-07]
[1768165941166,4.21408986,3110.2,3110.1,2.5e-07]
[1768165941532,3.21522731,3110.2,3110.1,2.5e-07]
[1768165941727,3.95824968,3110.2,3110.1,2.5e-07]
[1768165946266,0.74302237,3110.2,3110.1,2.5e-07]
[1768165947856,0.001,3110.3,3110.1,2.5e-07]
[1768165989194,0.00080312,3110.6,3110.1,2.5e-07]
[1768165989369,0.97381923,3110.6,3110.1,2.5e-07]
[1768165989705,0.00080312,3110.6,3110.1,2.5e-07]
[1768165990067,0.97381923,3110.6,3110.1,2.5e-07]
[1768165990793,0.00080312,3110.6,3110.1,2.5e-07]
[1768165991566,0.00080312,3110.6,3110.1,0.95865879]
[1768165991862,0.00080312,3110.6,3110.2,0.41740353]
[1768165992706,0.97381923,3110.6,3110.2,0.41740353]
[1768165992888,0.97381923,3110.6,3110.1,2.5e-07]
[1768165994119,0.00080312,3110.6,3110.1,2.5e-07]
[1768166002316,0.001,3110.3,3110.1,2.5e-07]
[1768166002687,0.00080312,3110.6,3110.1,2.5e-07]
[1768166005418,0.00080312,3110.6,3110.1,0.95865879]
[1768166005619,0.00080312,3110.6,3110.2,0.41740735]
[1768166006130,0.00080312,3110.6,3110.1,0.95865879]
[1768166007927,0.00080312,3110.6,3110.1,4.17398372]
[1768166008099,0.00080312,3110.6,3110.2,0.95865854]
[1768166014528,0.001,3110.3,3110.2,0.95865854]
[1768166014741,0.00080312,3110.6,3110.2,0.95865854]
[1768166016442,0.00080312,3110.6,3110.4,0.97353185]
[1768166016829,0.001,3110.7,3110.4,0.97353185]
[1768166017403,0.001,3110.7,3110.3,0.41739634]
[1768166017939,0.001,3110.7,3110.3,1.39092819]
[1768166019140,5.08730717,3111.2,3110.5,5.44270769]
[1768166019141,0.96463177,3111.2,3110.5,5.44270769]
[1768166019314,0.90839506,3111.3,3110.6,0.54427077]
[1768166019521,0.90839506,3111.3,3110.5,5.44270769]
[1768166020701,0.90839506,3111.3,3110.6,0.97353185]
[1768166021602,3.21402412,3111.4,3110.6,0.97353185]
[1768166021832,4.12241918,3111.4,3110.6,0.97353185]
[1768166022139,4.9777996,3111.4,3110.6,0.97353185]
[1768166023622,1.76377548,3111.4,3110.6,0.97353185]
[1768166023932,0.90839506,3111.4,3110.6,4.1882987]
[1768166024510,4.12240029,3111.4,3110.6,0.97353185]
[1768166025119,0.90839506,3111.4,3110.6,4.18833581]
[1768166025530,4.12238971,3111.4,3110.6,0.97353185]
[1768166026453,0.001,3111.1,3110.6,0.97353185]
[1768166026750,0.001,3111.1,3110.7,0.86595774]
[1768166027255,1.21752632,3111.5,3110.8,0.97353185]
[1768166027256,0.96452632,3111.5,3110.8,0.97353185]
[1768166027545,3.21372895,3111.7,3110.9,0.97353185]
[1768166027721,0.90839506,3111.7,3110.9,0.97353185]
[1768166028123,4.12211613,3111.7,3110.9,0.97353185]
[1768166028423,4.65614895,3111.7,3110.9,0.97353185]
[1768166028635,0.53403282,3111.7,3111.0,0.97353185]
[1768166028955,4.65612313,3111.7,3111.0,0.97353185]
[1768166029309,4.65612313,3111.7,3110.8,7.68375299]
[1768166029310,0.90839506,3111.6,3110.8,7.68375299]
[1768166030141,3.21369525,3111.7,3110.9,0.97353185]
[1768166030349,4.9774707,3111.7,3110.9,0.97353185]
[1768166030620,0.90839506,3111.6,3110.7,1.83948959]
[1768166031749,0.90839506,3111.6,3110.8,0.97353185]
[1768166032125,4.12223668,3111.6,3110.8,0.97353185]
[1768166032445,3.21384162,3111.6,3110.8,0.97353185]
[1768166032622,3.21384162,3111.6,3110.7,4.08065938]
[1768166032623,3.21384162,3111.6,3111.0,0.97353185]
[1768166033147,4.12223668,3111.6,3110.9,0.50541912]
[1768166038347,4.12223668,3111.6,3111.1,0.002]
[1768166038667,0.001,3111.3,3111.1,0.002]
[1768166048433,0.001,3111.3,3111.1,0.91352094]
[1768166049950,0.001,3111.3,3111.1,0.002]
[1768166052851,0.96600191,3111.3,3111.1,0.002]
[1768166053547,0.001,3111.3,3111.1,0.002]
[1768166056181,0.001,3111.3,3111.1,0.91255947]
[1768166061686,0.0008036,3111.8,3111.2,0.91055947]
[1768166065159,0.0008036,3111.8,3111.2,1.16355947]